bitfinex/quotes_SOLUSD_20251119
["timestamp","ask_amount","ask_price","bid_price","bid_amount"]
[1763568384530,5.30329364,134.8,134.75,18.12096]
[1763568384725,1.8,134.8,134.79,2.44987891]
[1763568385132,4.74696202,134.83,134.79,20.57083891]
[1763568385334,1.8,134.83,134.82,2.44987891]
[1763568385534,7.10123473,134.83,134.82,2.44987891]
[1763568386049,1.8,134.83,134.82,2.44987891]
[1763568386830,9.78882769,134.86,134.82,6.37205288]
[1763568387148,1.8,134.83,134.8,7.41835291]
[1763568387328,1.8,134.83,134.82,6.37205288]
[1763568388557,2.47,134.83,134.77,18.12096]
[1763568388867,9.78882769,134.84,134.82,6.37205288]
[1763568389026,1.8,134.83,134.77,25.54083045]
[1763568389226,1.8,134.83,134.81,6.37205288]
[1763568389422,2.47,134.83,134.81,6.37205288]
[1763568390435,1.8,134.82,134.81,6.37205288]
[1763568391541,1.8,134.82,134.8,6.37205288]
[1763568391748,2.47,134.82,134.81,6.37205288]
[1763568392031,1.8,134.82,134.81,6.37205288]
[1763568392350,9.78882769,134.84,134.81,68.47205288]
[1763568392536,0.67,134.85,134.83,6.37205288]
[1763568392740,1.8,134.84,134.81,62.1]
[1763568393137,9.78882769,134.86,134.81,62.1]
[1763568393339,18.12096,134.88,134.81,69.51753637]
[1763568393544,7.71680902,134.92,134.81,69.51753637]
[1763568393545,7.75515196,134.87,134.81,69.51753637]
[1763568393743,2.47,134.87,134.81,62.1]
[1763568393946,0.67,134.86,134.84,6.37205288]
[1763568394163,0.67,134.86,134.83,6.37205288]
[1763568394341,0.67,134.86,134.81,62.1]
[1763568394656,0.67,134.86,134.78,7.41944728]
[1763568394657,9.78882769,134.85,134.78,7.41944728]
[1763568394856,9.78882769,134.85,134.82,6.37205288]
[1763568395170,10.45882769,134.85,134.83,6.37205288]
[1763568395354,9.78882769,134.85,134.79,7.41845542]
[1763568395552,1.8,134.84,134.82,6.37205288]
[1763568395741,1.8,134.84,134.83,6.37205288]
[1763568395935,15.21537876,134.87,134.83,6.37205288]
[1763568396135,15.21537876,134.87,134.77,18.12096]
[1763568396136,1.8,134.84,134.82,6.37205288]
[1763568396357,1.8,134.84,134.77,18.12096]
[1763568396358,1.8,134.84,134.74,18.12096]
[1763568396555,0.67,134.83,134.82,6.37205288]
[1763568398378,1.8,134.86,134.82,6.37205288]
[1763568398557,1.8,134.85,134.82,7.41706819]
[1763568398866,1.8,134.85,134.84,6.37205288]
[1763568399236,9.78882769,134.9,134.84,6.37205288]
[1763568399457,0.67,134.92,134.86,18.12096]
[1763568399658,0.67,134.92,134.8,0.74183976]
[1763568399659,9.78882769,134.9,134.8,6.37205288]
[1763568399956,9.78882769,134.91,134.87,6.37205288]
[1763568400137,0.67,134.91,134.89,6.37205288]
[1763568400336,0.2,134.94,134.9,6.37205288]
[1763568400337,0.67,134.93,134.9,6.37205288]
[1763568400533,1.8,134.91,134.87,18.12096]
[1763568400757,1.8,134.91,134.9,6.37205288]
[1763568400954,0.67,134.93,134.9,6.37205288]
[1763568401146,1.8,134.91,134.87,25.53524359]
[1763568401343,0.2,134.94,134.87,44.07161194]
[1763568401561,1.8,134.93,134.87,106.17161194]
[1763568402231,1.8,134.93,134.92,6.37205288]
[1763568402832,2.47,134.93,134.87,25.53524359]
[1763568403057,2.47,134.93,134.92,6.37205288]
[1763568403240,0.2,134.94,134.92,68.47205288]
[1763568403437,0.2,134.94,134.93,6.37205288]
[1763568403844,0.2,134.94,134.93,18.12096]
[1763568404143,0.2,134.94,134.93,24.49301288]
[1763568404348,0.2,134.97,134.96,18.12096]
[1763568404638,4.73180387,135.06,134.96,30.86506576]
[1763568404639,2.47,135.06,134.96,30.86506576]
[1763568404849,0.67,135.06,135.05,6.37205288]
[1763568405051,0.67,135.06,135.01,18.12096]
[1763568405052,2.47,135.06,135.01,18.12096]
[1763568405377,12.25882769,135.06,135.05,6.37205288]
[1763568405663,11.58882769,135.06,135.05,6.37205288]
[1763568406054,9.78882769,135.05,135.03,6.37205288]
[1763568406247,10.45882769,135.05,135.03,6.37205288]
[1763568406548,4.70879306,135.09,135.04,6.37205288]
[1763568406750,1.8,135.09,135.08,6.37205288]
[1763568406958,2.47,135.09,135.01,18.12096]
[1763568407255,5.37989621,135.12,135.08,6.37205288]
[1763568407448,0.67,135.11,135.1,6.37205288]
[1763568407765,1.8,135.13,135.06,18.12096]
[1763568407963,2.47,135.13,135.11,6.37205288]
[1763568408477,1.8,135.13,135.12,6.37205288]
[1763568408671,1.8,135.13,135.11,6.37205288]
[1763568408837,0.67,135.14,135.12,6.37205288]
[1763568409040,2.47,135.14,135.08,7.40302043]
[1763568409368,2.47,135.14,135.09,6.37205288]
[1763568409668,0.67,135.13,135.11,6.37205288]
[1763568409834,0.67,135.13,135.12,6.37205288]
[1763568409835,2.47,135.13,135.12,6.37205288]
[1763568410039,2.47,135.13,135.04,18.12096]
[1763568410236,2.48,135.15,135.12,6.37205288]
[1763568410463,2.48,135.15,135.13,6.37205288]
[1763568410647,0.68,135.14,135.1,22.22130777]
[1763568410974,9.78882769,135.13,135.08,18.12096]
[1763568411170,9.78882769,135.13,135.12,6.37205288]
[1763568411461,12.26882769,135.13,135.11,6.37205288]
[1763568411678,0.68,135.13,135.12,6.37205288]
[1763568411852,18.12096,135.18,135.12,6.37205288]
[1763568411853,0.68,135.15,135.12,6.37205288]
[1763568412165,8.48887759,135.21,135.14,6.37205288]
[1763568412166,0.68,135.17,135.14,6.37205288]
[1763568412344,0.68,135.17,135.16,6.37205288]
[1763568412542,0.88,135.21,135.16,6.37205288]
[1763568412747,2.68,135.21,135.19,6.37205288]
[1763568412967,0.68,135.2,135.13,18.12096]
[1763568413147,2.48,135.2,135.19,6.37205288]
[1763568413350,0.68,135.2,135.19,6.37205288]
[1763568413672,0.2,135.21,135.19,6.37205288]
[1763568413673,1.5,135.21,135.19,6.37205288]
[1763568413859,1.8,135.22,135.2,6.37205288]
[1763568414053,2.48,135.22,135.2,6.37205288]
[1763568414250,0.68,135.22,135.21,6.37205288]
[1763568414470,0.68,135.22,135.16,18.12096]
[1763568414767,0.68,135.22,135.21,6.37205288]
[1763568415539,0.68,135.22,135.15,18.12096]
[1763568415763,9.78882769,135.21,135.15,18.12096]
[1763568416139,0.68,135.2,135.18,6.37205288]
[1763568416742,0.68,135.2,135.16,6.37205288]
[1763568416943,9.78882769,135.19,135.15,6.37205288]
[1763568417275,1.8,135.18,135.15,6.37205288]
[1763568417478,2.48,135.18,135.15,6.37205288]
[1763568417660,0.68,135.17,135.15,6.37205288]
[1763568418483,9.78882769,135.19,135.13,18.12096]
[1763568418484,1.8,135.19,135.16,6.37205288]
[1763568418651,1.8,135.19,135.13,18.12096]
[1763568418852,1.8,135.19,135.17,6.37205288]
[1763568419260,1.8,135.19,135.14,18.12096]
[1763568419261,0.68,135.18,135.16,6.37205288]
[1763568420287,0.68,135.18,135.15,6.37205288]
[1763568420492,0.68,135.18,135.15,68.47205288]
[1763568420661,0.68,135.18,135.17,6.37205288]
[1763568420860,1.8,135.18,135.17,6.37205288]
[1763568421165,10.46882769,135.17,135.13,61.38]
[1763568421576,2.48,135.16,135.13,67.75205288]
[1763568421778,18.12096,135.23,135.14,6.37205288]
[1763568421978,0.68,135.19,135.16,6.37205288]
[1763568422190,0.68,135.22,135.18,5.87205288]
[1763568422363,0.68,135.21,135.18,67.75205288]
[1763568422682,0.68,135.21,135.18,6.37205288]
[1763568423386,0.68,135.23,135.2,6.37205288]
[1763568423555,0.68,135.23,135.17,7.39806007]
[1763568423556,0.2,135.26,135.18,18.12096]
[1763568423755,0.68,135.25,135.17,18.12096]
[1763568423991,16.16088057,135.24,135.16,0.72]
[1763568424164,16.16088057,135.24,135.14,7.39956917]
[1763568424165,9.78882769,135.24,135.2,6.37205288]
[1763568424361,0.68,135.24,135.22,6.37205288]
[1763568424753,0.2,135.26,135.23,6.37205288]
[1763568424967,2.68,135.26,135.17,18.84096]
[1763568425169,16.16088057,135.25,135.17,18.12096]
[1763568425376,16.16088057,135.25,135.17,6.37205288]
[1763568425377,9.78882769,135.23,135.17,6.37205288]
[1763568425580,9.78882769,135.21,135.16,6.37205288]
[1763568425882,1.8,135.2,135.17,6.37205288]
[1763568426184,8.85205288,135.2,135.15,6.37205288]
[1763568426354,8.85205288,135.2,135.08,56.81273637]
[1763568426355,9.78882769,135.17,135.08,22.86455729]
[1763568426561,9.78882769,135.17,135.12,6.37205288]
[1763568426763,0.68,135.16,135.12,6.37205288]
[1763568426982,1.8,135.15,135.11,24.49301288]
[1763568427600,1.8,135.15,135.12,6.37205288]
[1763568427601,2.48,135.15,135.12,6.37205288]
[1763568427762,0.68,135.21,135.14,6.37205288]
[1763568427959,9.78882769,135.2,135.17,6.37205288]
[1763568428266,11.58882769,135.2,135.16,6.37205288]
[1763568428469,12.26882769,135.2,135.17,6.37205288]
[1763568428878,0.68,135.19,135.17,6.37205288]
[1763568429186,0.68,135.19,135.13,18.12096]
[1763568429362,0.68,135.19,135.16,6.37205288]
[1763568429564,0.68,135.19,135.17,6.37205288]
[1763568430294,1.8,135.19,135.18,6.37205288]
[1763568430459,2.48,135.19,135.16,6.37205288]
[1763568430653,2.48,135.19,135.14,18.84096]
[1763568430654,1.8,135.19,135.17,6.37205288]
[1763568431087,2.48,135.19,135.17,6.37205288]
[1763568431285,9.78882769,135.17,135.13,6.37205288]
[1763568431456,0.68,135.16,135.12,6.37205288]
[1763568431666,1.8,135.15,135.12,6.37205288]
[1763568431983,10.17408675,135.25,135.14,6.37205288]
[1763568432287,9.78882769,135.18,135.15,6.37205288]
[1763568432488,1.8,135.18,135.17,6.37205288]
[1763568432687,1.8,135.18,135.13,0.72]
[1763568432871,1.8,135.18,135.17,6.37205288]
[1763568433071,0.2,135.26,135.17,24.49301288]
[1763568433379,0.88,135.26,135.22,18.12096]
[1763568433691,0.88,135.26,135.25,6.37205288]
[1763568433692,0.2,135.26,135.25,6.37205288]
[1763568434184,0.2,135.26,135.21,18.12096]
[1763568434185,0.2,135.26,135.21,18.84096]
[1763568434391,0.2,135.26,135.25,6.37205288]
[1763568434559,0.2,135.26,135.21,18.84096]
[1763568434764,0.2,135.26,135.25,6.37205288]
[1763568434963,9.78882769,135.25,135.16,1.45986386]
[1763568435186,9.78882769,135.25,135.16,18.84096]
[1763568435366,0.68,135.24,135.2,6.37205288]
[1763568435569,0.68,135.24,135.22,6.37205288]
[1763568435803,0.2,135.26,135.23,6.37205288]
[1763568436008,1.8,135.25,135.23,6.37205288]
[1763568436478,1.8,135.25,135.24,6.37205288]
[1763568436694,2.0,135.26,135.24,6.37205288]
[1763568436991,0.2,135.26,135.25,25.21301288]
[1763568437288,0.2,135.26,135.25,31.88672822]
[1763568437478,0.2,135.26,135.25,32.60672822]
[1763568437880,0.2,135.27,135.25,14.48576822]
[1763568438082,0.2,135.28,135.26,25.21301288]
[1763568438293,0.2,135.31,135.27,24.49301288]
[1763568438500,0.2,135.31,135.3,6.37205288]
[1763568438866,0.2,135.31,135.3,9.69181626]
[1763568439472,0.2,135.31,135.3,32.18659984]
[1763568439676,0.2,135.31,135.3,9.69181626]
[1763568440169,0.2,135.31,135.27,18.12096]
[1763568440372,0.88,135.31,135.27,40.7606067]
[1763568440578,0.88,135.31,135.28,9.69181626]
[1763568440774,0.68,135.3,135.27,9.69181626]
[1763568441182,11.58882769,135.29,135.21,1.39959026]
[1763568441382,12.26882769,135.29,135.26,9.69181626]
[1763568441990,0.68,135.28,135.24,18.12096]
[1763568442191,0.68,135.28,135.26,9.69181626]
[1763568442392,11.58882769,135.29,135.26,9.69181626]
[1763568442592,0.2,135.31,135.28,9.69181626]
[1763568442780,0.88,135.31,135.25,18.86033153]
[1763568442977,0.2,135.31,135.3,9.69181626]
[1763568443382,0.2,135.31,135.26,0.66]
[1763568443697,0.88,135.31,135.28,9.69181626]
[1763568443898,0.2,135.31,135.3,9.69181626]
[1763568444075,0.2,135.31,135.27,18.78096]
[1763568444409,0.2,135.31,135.3,27.81277626]
[1763568446302,0.2,135.31,135.3,18.12096]
[1763568446499,0.2,135.31,135.3,27.81277626]
[1763568446882,0.2,135.31,135.3,35.86375926]
[1763568447194,0.2,135.34,135.33,18.12096]
[1763568447398,0.2,135.34,135.33,26.03030456]
[1763568447582,0.2,135.35,135.33,35.72212082]
[1763568447787,0.2,135.36,135.34,10.01181626]
[1763568448097,0.2,135.37,135.35,27.81277626]
[1763568448300,0.2,135.4,135.39,18.12096]
[1763568448603,0.2,135.42,135.4,9.78882769]
[1763568448908,0.2,135.45,135.44,27.81277626]
[1763568449086,0.2,135.45,135.39,2.95978393]
[1763568449276,0.2,135.45,135.44,27.81277626]
[1763568449475,0.89,135.45,135.39,2.96022201]
[1763568449676,0.89,135.45,135.42,9.69181626]
[1763568449983,0.69,135.44,135.42,9.69181626]
[1763568450186,0.69,135.44,135.35,1.8]
[1763568450386,0.69,135.44,135.4,9.69181626]
[1763568450586,0.69,135.44,135.35,1.8]
[1763568450587,0.69,135.44,135.41,9.69181626]
[1763568451083,0.2,135.45,135.43,9.69181626]
[1763568451290,0.2,135.45,135.44,9.69181626]
[1763568451503,0.69,135.44,135.37,18.12096]
[1763568451678,0.69,135.44,135.36,0.73877068]
[1763568451879,0.69,135.44,135.4,9.69181626]
[1763568452103,5.84660642,135.42,135.38,9.69181626]
[1763568452279,0.69,135.42,135.4,9.69181626]
[1763568452480,0.69,135.42,135.34,19.92096]
[1763568452686,0.69,135.42,135.4,9.69181626]
[1763568452986,14.51291087,135.41,135.36,9.69181626]
[1763568453182,0.69,135.4,135.36,9.69181626]
[1763568453380,0.69,135.4,135.35,9.69181626]
[1763568453587,10.69408628,135.4,135.33,18.12096]
[1763568453792,4.72408318,135.4,135.39,9.69181626]
[1763568453993,0.69,135.42,135.34,18.85983985]
[1763568454206,0.69,135.42,135.34,18.12096]
[1763568454405,0.69,135.42,135.37,9.69181626]
[1763568454582,5.96517554,135.42,135.38,9.69181626]
[1763568454784,0.69,135.42,135.38,9.69181626]
[1763568454985,0.69,135.41,135.39,9.69181626]
[1763568455718,0.69,135.43,135.4,9.69181626]
[1763568456009,0.69,135.43,135.39,9.69181626]
[1763568456221,0.69,135.43,135.37,27.81277626]
[1763568456222,9.78882769,135.42,135.37,27.81277626]
[1763568456522,14.96653422,135.41,135.32,18.12096]
[1763568456711,9.78882769,135.4,135.36,9.69181626]
[1763568456914,15.22869345,135.4,135.36,9.69181626]
[1763568457205,0.69,135.39,135.35,9.69181626]
[1763568457415,0.69,135.39,135.34,27.81277626]
[1763568457720,0.69,135.39,135.34,18.12096]
[1763568457896,4.74935409,135.41,135.37,9.69181626]
[1763568458093,0.69,135.42,135.35,18.12096]
[1763568458094,0.69,135.42,135.4,9.69181626]
[1763568458584,0.69,135.42,135.39,9.69181626]
[1763568458785,0.69,135.42,135.35,18.12096]
[1763568459012,0.69,135.42,135.37,9.69181626]
[1763568459391,15.64854748,135.42,135.37,9.69181626]
[1763568459604,10.38181626,135.42,135.37,9.69181626]
[1763568459828,19.48064395,135.4,135.33,1.8]
[1763568460021,4.74935409,135.39,135.34,9.69181626]
[1763568460192,10.38181626,135.39,135.29,9.19148295]
[1763568460385,19.48064395,135.37,135.25,20.48356846]
[1763568460698,4.73803494,135.36,135.32,9.69181626]
[1763568460902,1.8,135.35,135.3,9.69181626]
[1763568461088,2.49,135.35,135.3,9.69181626]
[1763568461288,2.49,135.35,135.33,9.69181626]
[1763568461524,2.49,135.35,135.28,18.12096]
[1763568461737,0.69,135.35,135.31,9.69181626]
[1763568461891,0.69,135.34,135.31,9.69181626]
[1763568462408,0.69,135.34,135.32,9.69181626]
[1763568462619,0.69,135.34,135.31,9.69181626]
[1763568463006,0.69,135.34,135.29,18.12096]
[1763568463308,0.69,135.34,135.31,9.69181626]
[1763568463507,6.54162134,135.36,135.28,18.12096]
[1763568463508,1.8,135.36,135.32,9.69181626]
[1763568463808,9.78882769,135.37,135.33,9.69181626]
[1763568464011,0.69,135.35,135.32,9.69181626]
[1763568464317,0.69,135.35,135.31,9.69181626]
[1763568465022,0.69,135.35,135.32,9.69181626]
[1763568465521,9.78882769,135.41,135.34,9.69181626]
[1763568465710,0.69,135.4,135.35,9.69181626]
[1763568465913,10.38181626,135.4,135.34,18.12096]
[1763568466217,20.17064395,135.39,135.34,18.12096]
[1763568466407,0.69,135.39,135.36,9.69181626]
[1763568466606,0.69,135.38,135.35,9.69181626]
[1763568466807,0.69,135.38,135.34,18.12096]
[1763568467143,0.69,135.38,135.33,9.69181626]
[1763568467433,9.78882769,135.37,135.33,9.69181626]
[1763568467593,9.78882769,135.37,135.32,9.69181626]
[1763568467791,2.49,135.36,135.28,18.12096]
[1763568467997,0.69,135.35,135.32,9.69181626]
[1763568468220,0.69,135.35,135.33,9.69181626]
[1763568468392,0.69,135.35,135.28,18.12096]
[1763568468596,0.69,135.35,135.31,9.69181626]
[1763568469729,0.69,135.35,135.3,9.69181626]
[1763568469949,0.69,135.35,135.31,9.69181626]
[1763568470110,0.69,135.35,135.28,18.12096]
[1763568470111,0.69,135.35,135.3,9.69181626]
[1763568470428,19.48064395,135.34,135.26,1.8]
[1763568470733,19.48064395,135.34,135.28,9.69181626]
[1763568470940,0.72,135.33,135.3,9.69181626]
[1763568471247,9.69181626,135.31,135.22,1.8]
[1763568471420,12.30882769,135.3,135.21,22.59351092]
[1763568471735,22.00064395,135.3,135.19,7.39697129]
[1763568472038,9.78882769,135.28,135.23,9.69181626]
[1763568472209,0.72,135.27,135.18,9.19736902]
[1763568472415,0.72,135.29,135.26,9.69181626]
[1763568472744,0.72,135.3,135.25,18.12096]
[1763568473038,0.72,135.3,135.26,9.69181626]
[1763568473408,0.72,135.3,135.19,10.43151594]
[1763568473409,10.41181626,135.3,135.22,18.12096]
[1763568473617,9.78882769,135.29,135.24,9.69181626]
[1763568473818,1.8,135.28,135.24,9.69181626]
[1763568474039,2.52,135.28,135.24,9.69181626]
[1763568474233,0.72,135.27,135.24,9.69181626]
[1763568474436,0.72,135.27,135.19,79.92847482]
[1763568474712,0.72,135.27,135.24,9.69181626]
[1763568475247,9.78882769,135.29,135.26,9.69181626]
[1763568475531,0.72,135.31,135.25,18.12096]
[1763568475732,0.72,135.31,135.29,9.69181626]
[1763568475931,0.72,135.31,135.25,18.12096]
[1763568476133,0.72,135.31,135.29,9.69181626]
[1763568476337,0.72,135.31,135.27,9.69181626]
[1763568476509,0.72,135.31,135.28,9.69181626]
[1763568477834,0.72,135.31,135.29,9.69181626]
[1763568478423,0.72,135.31,135.28,9.69181626]
[1763568478629,0.72,135.31,135.29,9.69181626]
[1763568479043,0.72,135.31,135.25,18.12096]
[1763568479044,4.77080068,135.34,135.3,9.69181626]
[1763568479216,0.72,135.34,135.32,9.69181626]
[1763568479417,0.72,135.33,135.31,9.69181626]
[1763568479619,0.72,135.33,135.24,0.7394262]
[1763568479839,6.04054341,135.33,135.28,18.12096]
[1763568480142,6.04054341,135.33,135.3,9.69181626]
[1763568480341,0.72,135.32,135.26,18.12096]
[1763568480642,1.8,135.31,135.27,9.69181626]
[1763568480945,5.32054341,135.3,135.27,9.69181626]
[1763568481252,6.04054341,135.3,135.27,9.69181626]
[1763568481456,0.72,135.29,135.28,9.69181626]
[1763568481753,0.72,135.3,135.28,9.69181626]
[1763568481916,0.72,135.3,135.27,9.69181626]
[1763568482112,4.77080068,135.34,135.29,9.69181626]
[1763568482322,0.72,135.33,135.31,9.69181626]
[1763568482826,1.8,135.32,135.28,9.69181626]
[1763568483026,0.72,135.31,135.29,9.69181626]
[1763568483241,0.72,135.31,135.28,9.69181626]
[1763568483573,0.72,135.31,135.24,9.69181626]
[1763568483574,14.55962837,135.3,135.24,9.69181626]
[1763568483726,9.78882769,135.28,135.24,9.69181626]
[1763568483919,7.13554514,135.27,135.21,84.58866065]
[1763568484119,5.33554514,135.26,135.23,9.69181626]
[1763568484329,2.52,135.27,135.24,9.69181626]
[1763568484750,1.8,135.28,135.25,9.69181626]
[1763568484974,0.72,135.29,135.26,9.69181626]
[1763568485252,1.8,135.29,135.28,9.69181626]
[1763568485664,2.52,135.29,135.27,9.69181626]
[1763568485958,2.52,135.29,135.28,9.69181626]
[1763568486365,2.52,135.29,135.23,80.22096]
[1763568486660,15.85890492,135.28,135.23,18.12096]
[1763568486954,15.27962837,135.28,135.23,27.81277626]
[1763568487264,0.72,135.27,135.21,22.57637788]
[1763568487459,19.48064395,135.24,135.14,0.2]
[1763568487682,19.48064395,135.22,135.14,0.2]
[1763568487838,9.78882769,135.2,135.14,0.2]
[1763568488162,19.48064395,135.18,135.14,0.2]
[1763568488369,5.34414437,135.19,135.05,0.94046649]
[1763568488370,19.48064395,135.16,135.05,0.94046649]
[1763568488529,9.78882769,135.14,135.05,0.2]
[1763568488736,0.72,135.16,135.12,9.69181626]
[1763568488934,10.50882769,135.16,135.12,9.69181626]
[1763568489476,0.72,135.15,135.1,40.7135121]
[1763568489667,0.72,135.15,135.07,18.12096]
[1763568489849,0.72,135.15,135.1,9.69181626]
[1763568490034,9.78882769,135.14,135.09,9.69181626]
[1763568490241,9.78882769,135.14,135.11,9.69181626]
[1763568490545,9.78882769,135.16,135.13,9.69181626]
[1763568490932,0.72,135.15,135.08,18.12096]
[1763568491675,0.72,135.15,135.12,9.69181626]
[1763568491835,9.78882769,135.14,135.1,9.69181626]
[1763568492258,0.72,135.13,135.1,9.69181626]
[1763568492860,0.72,135.13,135.11,9.69181626]
[1763568493684,9.78882769,135.14,135.08,25.52381374]
[1763568493685,0.72,135.15,135.12,9.69181626]
[1763568493970,0.72,135.15,135.09,7.40235805]
[1763568494136,0.72,135.15,135.13,9.69181626]
[1763568494463,1.8,135.16,135.14,9.69181626]
[1763568494643,2.52,135.16,135.13,9.69181626]
[1763568494834,0.72,135.15,135.13,9.69181626]
[1763568495259,1.8,135.16,135.14,9.69181626]
[1763568495466,0.72,135.18,135.15,9.69181626]
[1763568495640,0.72,135.18,135.17,9.69181626]
[1763568495844,0.72,135.18,135.16,9.69181626]
[1763568496166,0.72,135.22,135.17,9.69181626]
[1763568496383,0.72,135.22,135.21,9.69181626]
[1763568496538,0.72,135.22,135.16,0.2]
[1763568496741,0.72,135.22,135.14,19.92096]
[1763568496742,0.72,135.22,135.2,9.69181626]
[1763568497466,0.72,135.22,135.19,9.69181626]
[1763568497849,0.72,135.22,135.16,9.69181626]
[1763568497850,9.78882769,135.21,135.16,9.69181626]
[1763568498368,9.78882769,135.19,135.17,9.69181626]
[1763568498856,9.78882769,135.22,135.18,9.69181626]
[1763568499039,9.78882769,135.22,135.19,9.69181626]
[1763568499242,0.72,135.21,135.19,9.69181626]
[1763568500066,9.78882769,135.22,135.19,9.69181626]
[1763568500366,0.68,135.22,135.21,9.69181626]
[1763568500572,9.78882769,135.27,135.21,9.69181626]
[1763568500744,1.8,135.29,135.25,6.33224619]
[1763568500944,0.68,135.27,135.25,6.33224619]
[1763568501452,0.68,135.27,135.26,6.33224619]
[1763568501652,0.68,135.27,135.25,6.33224619]
[1763568502042,14.58931088,135.31,135.26,6.33224619]
[1763568502239,0.68,135.31,135.29,6.33224619]
[1763568502768,0.68,135.31,135.3,6.33224619]
[1763568503266,7.01224619,135.31,135.25,18.12096]
[1763568503452,7.01224619,135.31,135.1,6.33224619]
[1763568503453,9.78882769,135.28,135.2,0.2]
[1763568503650,16.38931088,135.28,135.2,0.2]
[1763568503861,0.68,135.27,135.19,18.12096]
[1763568504047,9.78882769,135.26,135.17,0.2]
[1763568504249,5.33969242,135.25,135.22,6.33224619]
[1763568504445,11.58882769,135.24,135.18,18.12096]
[1763568504645,12.26882769,135.24,135.2,6.33224619]
[1763568504838,9.78882769,135.22,135.18,6.33224619]
[1763568505256,9.78882769,135.2,135.17,6.33224619]
[1763568505469,11.58882769,135.2,135.15,6.33224619]
[1763568505744,0.68,135.19,135.16,6.33224619]
[1763568505958,0.68,135.19,135.16,24.45320619]
[1763568506255,0.68,135.19,135.16,6.33224619]
[1763568507646,0.68,135.19,135.13,18.12096]
[1763568507964,0.68,135.19,135.16,6.33224619]
[1763568508168,0.68,135.19,135.17,6.33224619]
[1763568508473,4.79913203,135.22,135.14,18.12096]
[1763568508474,9.78882769,135.21,135.18,6.33224619]
[1763568508690,10.46882769,135.21,135.18,6.33224619]
[1763568508979,0.68,135.2,135.18,6.33224619]
[1763568509173,9.78882769,135.19,135.16,6.33224619]
[1763568509364,1.8,135.18,135.16,6.33224619]
[1763568509568,9.78882769,135.22,135.17,6.33224619]
[1763568509751,1.8,135.21,135.19,6.33224619]
[1763568510254,2.48,135.21,135.19,6.33224619]
[1763568510571,0.68,135.2,135.18,6.33224619]
[1763568510748,0.68,135.2,135.17,6.33224619]
[1763568511967,9.78882769,135.22,135.18,6.33224619]
[1763568512248,1.8,135.27,135.21,24.45320619]
[1763568512452,5.93669261,135.29,135.21,24.45320619]
[1763568512453,0.68,135.29,135.26,6.33224619]
[1763568512641,1.8,135.3,135.21,18.12096]
[1763568512642,10.46882769,135.28,135.21,18.12096]
[1763568512847,9.78882769,135.26,135.21,18.12096]
[1763568513071,11.58882769,135.26,135.22,6.33224619]
[1763568513253,0.68,135.25,135.23,6.33224619]
[1763568513447,1.8,135.25,135.24,6.33224619]
[1763568513676,10.46882769,135.27,135.24,6.33224619]
[1763568513868,12.26882769,135.27,135.25,6.33224619]
[1763568514269,0.68,135.26,135.25,6.33224619]
[1763568514657,0.68,135.26,135.21,18.12096]
[1763568514658,0.68,135.26,135.22,6.33224619]
[1763568514849,6.0021836,135.26,135.21,6.33224619]
[1763568515051,6.0021836,135.26,135.22,6.33224619]
[1763568515275,9.78882769,135.24,135.22,6.33224619]
[1763568515578,0.68,135.25,135.23,6.33224619]
[1763568515789,2.48,135.25,135.23,6.33224619]
[1763568515993,1.8,135.25,135.24,6.33224619]
[1763568516155,2.48,135.25,135.23,6.33224619]
[1763568516356,0.68,135.24,135.23,6.33224619]
[1763568516667,0.68,135.24,135.22,6.33224619]
[1763568516871,0.68,135.24,135.23,6.33224619]
[1763568517379,0.68,135.24,135.2,18.12096]
[1763568517380,10.46882769,135.24,135.22,6.33224619]
[1763568517557,10.46882769,135.24,135.2,6.33224619]